Workbook

Sheet Hinweise
A1: Geschäftsgang 16
A3: Voraussetzungen
A4: Um den Geschäftsgang buchen zu können müssen Sie Kenntnisse über die folgenden Lehrninhalte haben:
A5: Buchungen auf Bestandskonten, Buchungen auf Erfolgskonten, Bestandsveränderungen, Abschreibungen, Umsatzsteuer, Buchung von Bezugskosten, Buchung von Nachlässen und Erlösberichtigungen, Kontenabschluss im Hauptbuch
E9: Für den Kontenabschluss müssen Sie Grundkenntnisse in der Tabellenkalkulation haben!
A13: Buchen im Grundbuch
A14: 1. Wählen Sie die Tabelle "Grundbuch".
A16: 2. Buchen Sie die Geschäftsvorfälle
A17: entweder durch Direkteingabe in die entsprechenden Felder des Grundbuchs (Kontennummern und Beträge)
A18: oder durch Aufruf von Buchungsfenstern. (Klicken Sie dazu jeweils auf die Schaltfläche "Buchung" und beenden
A19: Sie die Eingabe mit "OK".)
A20: Die Kontennummern sind vierstellig anzugeben. (siehe Kontenplan). Bei zusammengesetzten Buchungssätzen
A21: sind die Buchungen nach der Höhe der Beträge geordnet vorzunehmen.
A23: 3. Sie können sich den Kontenplan mit Kontennummern jederzeit durch Klick auf den
A24: entsprechenden Button anzeigen lassen.
A26: 4. Die Richtigkeit Ihrer Buchungen wird bestätigt oder Sie werden auf
A27: Fehler hingewiesen. (Ohne Buchung werden Fehler angezeigt.)
A29: Buchen in Hauptbuch, GuV und Schlussbilanz
A30: 1. Navigation
A31: Sie können über die Blattregisterkarten die Tabellen Grundbuch, Hauptbuch, GuV und Bilanzbuch ansteuern.
A32: Einen direkten Zugriff auf die jeweils benötigen Konten haben Sie über die folgenden Schalter:
B33: Hauptbuchkonten | E33: Grundbuch | G33: Nachlässe (Rohstoffe)
B34: Gewinn und Verlust | E34: Schlussbilanz | G34: Rohstoffe
B35: Bestandsveränderungen | E35: Umsatzsteuer | G35: Erlösberichtigungen
B36: Vorsteuer | E36: Unfertige Erzeugnisse | G36: Umsatzerlöse
B37: Fertige Erzeugnisse | E37: Bezugskosten (Rohst.)
A38: Über diese Schalter können Sie aus dem Grundbuch heraus das für die jeweilige Buchung benötigte Konto
A39: direkt aufrufen. Dieses Konto wird dann jeweils mit einem X markiert.
A41: 2. Buchungen
A42: Die Systematik wird Ihnen an einem Screenshot das Kontos Forderungen gezeigt.
A44: lfd. Nummern | E44: lfd. Nummern | G44: Navigation
E54: Beträge
B56: Kontenanruf (in jeder Zelle steht eine Kontonummer) | G56: Abschlussmeldung
B58: Eröffnungsbuchungen (bereits gebucht) | F58: A = Abschlussbuchung
B59: laufende Buchungen | F59: AB = Anfangsbestand
B60: Abschlussbuchungen und Berechnungen | F60: SB = Schlussbestand
A62: 3. Abschluss
A63: Die Konten sind unter fogenden Bedingungen richtig abgeschlossen.
A64: - Die Nummern der Gegenkonten werden gemäß den Grundsätzen ordnungsgemäßer Buchführung geordnet,
A65: in die dafür vorgesehenen Zellen eingetragen. Die Reihenfolge der Eintragungen muss mit dem Grundbuch
A66: übereinstimmen.
A67: - Die Beträge sind richtig eingetragen.
A68: - Die Abschlussberechnungen sind korrekt.

Sheet Grundbuch
A2: Geschäftsvorfälle
A3: Grundbuch
G4: 0.19
A6: 1. | B6: Einkauf von Baumwollstoffen auf Ziel bei der Weberei Holzmann KG, | D6: netto | E6: 43000 | F6: =IF(AND(B10="2000",B11="2600",E10="4400"),"Die Konten sind richtig!","Mindestens ein Konto ist falsch!") -> Mindestens ein Konto ist falsch!
A7: Geschäftsvorfall | D7: USt. | E7: =E6*$G$4 -> 8170 | F7: =IF(AND(D10=E6,D11=E7,G10=E8),"Die Beträge sind richtig!","Mindestens ein Betrag ist falsch!") -> Mindestens ein Betrag ist falsch!
D8: brutto | E8: =SUM(E6:E7) -> 51170 | F8: =IF(AND(F6="Die Konten sind richtig!",F7="Die Beträge sind richtig!"),"Alles richtig!","Es sind noch Fehler vorhanden!") -> Es sind noch Fehler vorhanden!
B9: Soll | C9: Konto | D9: € | E9: Haben | F9: Konto | G9: €
A10: Buchungssatz | C10: =IF(B10="","",VLOOKUP(B10,Kontenplan!$A$4:$B$31,2)) ->  | F10: =IF(E10="","",VLOOKUP(E10,Kontenplan!$A$4:$B$31,2)) -> 
C11: =IF(B11="","",VLOOKUP(B11,Kontenplan!$A$4:$B$31,2)) ->  | F11: =IF(E11="","",VLOOKUP(E11,Kontenplan!$A$4:$B$31,2)) -> 
A13: 2. | B13: Barzahlung von Bezugskosten für die Lieferung von Rohstoffen aus Geschäftsvorfall 1., | D13: netto | E13: 1200 | F13: =IF(AND(B17="2001",B18="2600",E17="2880"),"Die Konten sind richtig!","Mindestens ein Konto ist falsch!") -> Mindestens ein Konto ist falsch!
A14: Geschäftsvorfall | D14: USt. | E14: =E13*$G$4 -> 228 | F14: =IF(AND(D17=E13,D18=E14,G17=E15),"Die Beträge sind richtig!","Mindestens ein Betrag ist falsch!") -> Mindestens ein Betrag ist falsch!
D15: brutto | E15: =SUM(E13:E14) -> 1428 | F15: =IF(AND(F13="Die Konten sind richtig!",F14="Die Beträge sind richtig!"),"Alles richtig!","Es sind noch Fehler vorhanden!") -> Es sind noch Fehler vorhanden!
B16: Soll | C16: Konto | D16: € | E16: Haben | F16: Konto | G16: €
A17: Buchungssatz | C17: =IF(B17="","",VLOOKUP(B17,Kontenplan!$A$4:$B$31,2)) ->  | F17: =IF(E17="","",VLOOKUP(E17,Kontenplan!$A$4:$B$31,2)) -> 
C18: =IF(B18="","",VLOOKUP(B18,Kontenplan!$A$4:$B$31,2)) ->  | F18: =IF(E18="","",VLOOKUP(E18,Kontenplan!$A$4:$B$31,2)) -> 
A20: 3. | B20: Die Black and Blue Jeans GmbH begleicht eine Ausgangsrechnung abzüglich 3% Skonto durch Banküberweisung. | D20: Gutschrift | E20: =E23-E22-E21 -> 34629 | F20: =IF(AND(B25="2800",B26="5001",B27="4800",E25="2400"),"Die Konten sind richtig!","Mindestens ein Konto ist falsch!") -> Mindestens ein Konto ist falsch!
D21: Skonto | E21: =ROUND((E23*3%)-(E23*3%*($G$4*100))/(100+($G$4*100)),2) -> 900
A22: Geschäftsvorfall | D22: USt. | E22: =ROUND(E21*$G$4,2) -> 171 | F22: =IF(AND(D25=E20,D26=E21,D27=E22,G25=E23),"Die Beträge sind richtig!","Mindestens ein Betrag ist falsch!") -> Mindestens ein Betrag ist falsch!
D23: Bruttobetrag | E23: 35700 | F23: =IF(AND(F20="Die Konten sind richtig!",F22="Die Beträge sind richtig!"),"Alles richtig!","Es sind noch Fehler vorhanden!") -> Es sind noch Fehler vorhanden!
B24: Soll | C24: Konto | D24: € | E24: Haben | F24: Konto | G24: €
A25: Buchungssatz | C25: =IF(B25="","",VLOOKUP(B25,Kontenplan!$A$4:$B$31,2)) ->  | F25: =IF(E25="","",VLOOKUP(E25,Kontenplan!$A$4:$B$31,2)) -> 
C26: =IF(B26="","",VLOOKUP(B26,Kontenplan!$A$4:$B$31,2)) ->  | F26: =IF(E26="","",VLOOKUP(E26,Kontenplan!$A$4:$B$31,2)) -> 
C27: =IF(B27="","",VLOOKUP(B27,Kontenplan!$A$4:$B$31,2)) ->  | F27: =IF(E27="","",VLOOKUP(E27,Kontenplan!$A$4:$B$31,2)) -> 
A29: 4. | B29: Die Tropic GmbH kauft einen Lieferwagen auf Ziel, | D29: netto | E29: 42000 | F29: =IF(AND(B33="0840",B34="2600",E33="4400"),"Die Konten sind richtig!","Mindestens ein Konto ist falsch!") -> Mindestens ein Konto ist falsch!
A30: Geschäftsvorfall | D30: USt. | E30: =E29*$G$4 -> 7980 | F30: =IF(AND(D33=E29,D34=E30,G33=E31),"Die Beträge sind richtig!","Mindestens ein Betrag ist falsch!") -> Mindestens ein Betrag ist falsch!
D31: brutto | E31: =SUM(E29:E30) -> 49980 | F31: =IF(AND(F29="Die Konten sind richtig!",F30="Die Beträge sind richtig!"),"Alles richtig!","Es sind noch Fehler vorhanden!") -> Es sind noch Fehler vorhanden!
B32: Soll | C32: Konto | D32: € | E32: Haben | F32: Konto | G32: €
A33: Buchungssatz | C33: =IF(B33="","",VLOOKUP(B33,Kontenplan!$A$4:$B$31,2)) ->  | F33: =IF(E33="","",VLOOKUP(E33,Kontenplan!$A$4:$B$31,2)) -> 
C34: =IF(B34="","",VLOOKUP(B34,Kontenplan!$A$4:$B$31,2)) ->  | F34: =IF(E34="","",VLOOKUP(E34,Kontenplan!$A$4:$B$31,2)) -> 
A36: 5. | B36: Rücksendung beschädigter Stoffbahnen aus Geschäftsvorfall 1. an die Weberei Holzmann KG, | D36: netto | E36: 4500 | F36: =IF(AND(B40="4400",E40="2000",E41="2600"),"Die Konten sind richtig!","Mindestens ein Konto ist falsch!") -> Mindestens ein Konto ist falsch!
A37: Geschäftsvorfall | D37: USt. | E37: =E36*$G$4 -> 855 | F37: =IF(AND(D40=E38,G40=E36,G41=E37),"Die Beträge sind richtig!","Mindestens ein Betrag ist falsch!") -> Mindestens ein Betrag ist falsch!
D38: brutto | E38: =SUM(E36:E37) -> 5355 | F38: =IF(AND(F36="Die Konten sind richtig!",F37="Die Beträge sind richtig!"),"Alles richtig!","Es sind noch Fehler vorhanden!") -> Es sind noch Fehler vorhanden!
B39: Soll | C39: Konto | D39: € | E39: Haben | F39: Konto | G39: €
A40: Buchungssatz | C40: =IF(B40="","",VLOOKUP(B40,Kontenplan!$A$4:$B$31,2)) ->  | F40: =IF(E40="","",VLOOKUP(E40,Kontenplan!$A$4:$B$31,2)) -> 
C41: =IF(B41="","",VLOOKUP(B41,Kontenplan!$A$4:$B$31,2)) ->  | F41: =IF(E41="","",VLOOKUP(E41,Kontenplan!$A$4:$B$31,2)) -> 
A43: 6. | B43: Barzahlung für eine Maschinenreparatur | D43: netto | E43: 1300 | F43: =IF(AND(B47="6160",B48="2600",E47="2880"),"Die Konten sind richtig!","Mindestens ein Konto ist falsch!") -> Mindestens ein Konto ist falsch!
A44: Geschäftsvorfall | D44: USt. | E44: =E43*$G$4 -> 247 | F44: =IF(AND(D47=E43,D48=E44,G47=E45),"Die Beträge sind richtig!","Mindestens ein Betrag ist falsch!") -> Mindestens ein Betrag ist falsch!
D45: brutto | E45: =SUM(E43:E44) -> 1547 | F45: =IF(AND(F43="Die Konten sind richtig!",F44="Die Beträge sind richtig!"),"Alles richtig!","Es sind noch Fehler vorhanden!") -> Es sind noch Fehler vorhanden!
B46: Soll | C46: Konto | D46: € | E46: Haben | F46: Konto | G46: €
A47: Buchungssatz | C47: =IF(B47="","",VLOOKUP(B47,Kontenplan!$A$4:$B$31,2)) ->  | F47: =IF(E47="","",VLOOKUP(E47,Kontenplan!$A$4:$B$31,2)) -> 
C48: =IF(B48="","",VLOOKUP(B48,Kontenplan!$A$4:$B$31,2)) ->  | F48: =IF(E48="","",VLOOKUP(E48,Kontenplan!$A$4:$B$31,2)) -> 
A50: 7. | B50: Die Kick Moden GmbH erhält einen Bonus, | D50: netto | E50: 750 | F50: =IF(AND(B54="5001",B55="4800",E54="2400"),"Die Konten sind richtig!","Mindestens ein Konto ist falsch!") -> Mindestens ein Konto ist falsch!
A51: Geschäftsvorfall | D51: USt. | E51: =E50*$G$4 -> 142.5 | F51: =IF(AND(D54=E50,D55=E51,G54=E52),"Die Beträge sind richtig!","Mindestens ein Betrag ist falsch!") -> Mindestens ein Betrag ist falsch!
D52: brutto | E52: =SUM(E50:E51) -> 892.5 | F52: =IF(AND(F50="Die Konten sind richtig!",F51="Die Beträge sind richtig!"),"Alles richtig!","Es sind noch Fehler vorhanden!") -> Es sind noch Fehler vorhanden!
B53: Soll | C53: Konto | D53: € | E53: Haben | F53: Konto | G53: €
A54: Buchungssatz | C54: =IF(B54="","",VLOOKUP(B54,Kontenplan!$A$4:$B$31,2)) ->  | F54: =IF(E54="","",VLOOKUP(E54,Kontenplan!$A$4:$B$31,2)) -> 
C55: =IF(B55="","",VLOOKUP(B55,Kontenplan!$A$4:$B$31,2)) ->  | F55: =IF(E55="","",VLOOKUP(E55,Kontenplan!$A$4:$B$31,2)) -> 
A57: 8. | B57: Gutschrift der Weberei Holzmann KG aufgrund eines Mangels an der Lieferung von Geschäftsvorfall 1., | D57: netto | E57: 2200 | F57: =IF(AND(B61="4400",E61="2002",E62="2600"),"Die Konten sind richtig!","Mindestens ein Konto ist falsch!") -> Mindestens ein Konto ist falsch!
A58: Geschäftsvorfall | D58: USt. | E58: =E57*$G$4 -> 418 | F58: =IF(AND(D61=E59,G61=E57,G62=E58),"Die Beträge sind richtig!","Mindestens ein Betrag ist falsch!") -> Mindestens ein Betrag ist falsch!
D59: brutto | E59: =SUM(E57:E58) -> 2618 | F59: =IF(AND(F57="Die Konten sind richtig!",F58="Die Beträge sind richtig!"),"Alles richtig!","Es sind noch Fehler vorhanden!") -> Es sind noch Fehler vorhanden!
B60: Soll | C60: Konto | D60: € | E60: Haben | F60: Konto | G60: €
A61: Buchungssatz | C61: =IF(B61="","",VLOOKUP(B61,Kontenplan!$A$4:$B$31,2)) ->  | F61: =IF(E61="","",VLOOKUP(E61,Kontenplan!$A$4:$B$31,2)) -> 
C62: =IF(B62="","",VLOOKUP(B62,Kontenplan!$A$4:$B$31,2)) ->  | F62: =IF(E62="","",VLOOKUP(E62,Kontenplan!$A$4:$B$31,2)) -> 
A64: 9. | B64: Barzahlung von Ausgangsfrachten, | D64: netto | E64: 470 | F64: =IF(AND(B68="6140",B69="2600",E68="2880"),"Die Konten sind richtig!","Mindestens ein Konto ist falsch!") -> Mindestens ein Konto ist falsch!
A65: Geschäftsvorfall | D65: USt. | E65: =E64*$G$4 -> 89.3 | F65: =IF(AND(D68=E64,D69=E65,G68=E66),"Die Beträge sind richtig!","Mindestens ein Betrag ist falsch!") -> Mindestens ein Betrag ist falsch!
D66: brutto | E66: =SUM(E64:E65) -> 559.3 | F66: =IF(AND(F64="Die Konten sind richtig!",F65="Die Beträge sind richtig!"),"Alles richtig!","Es sind noch Fehler vorhanden!") -> Es sind noch Fehler vorhanden!
B67: Soll | C67: Konto | D67: € | E67: Haben | F67: Konto | G67: €
A68: Buchungssatz | C68: =IF(B68="","",VLOOKUP(B68,Kontenplan!$A$4:$B$31,2)) ->  | F68: =IF(E68="","",VLOOKUP(E68,Kontenplan!$A$4:$B$31,2)) -> 
C69: =IF(B69="","",VLOOKUP(B69,Kontenplan!$A$4:$B$31,2)) ->  | F69: =IF(E69="","",VLOOKUP(E69,Kontenplan!$A$4:$B$31,2)) -> 
A71: 10. | B71: Banküberweisung an die Cotton AG unter Abzug von 3% Skonto, für den Bezug von Rohstoffen. | D71: Lastschrift | E71: =E74-E73-E72 -> 11543 | F71: =IF(AND(B76="4400",E76="2800",E77="2002",E78="2600"),"Die Konten sind richtig!","Mindestens ein Konto ist falsch!") -> Mindestens ein Konto ist falsch!
D72: Skonto | E72: =ROUND((E74*3%)-(E74*3%*($G$4*100))/(100+($G$4*100)),2) -> 300
A73: Geschäftsvorfall | D73: USt. | E73: =ROUND(E72*$G$4,2) -> 57 | F73: =IF(AND(D76=E74,E74,G76=E71,G77=E72,G78=E73),"Die Beträge sind richtig!","Mindestens ein Betrag ist falsch!") -> Mindestens ein Betrag ist falsch!
D74: Bruttobetrag | E74: 11900 | F74: =IF(AND(F71="Die Konten sind richtig!",F73="Die Beträge sind richtig!"),"Alles richtig!","Es sind noch Fehler vorhanden!") -> Es sind noch Fehler vorhanden!
B75: Soll | C75: Konto | D75: € | E75: Haben | F75: Konto | G75: €
A76: Buchungssatz | C76: =IF(B76="","",VLOOKUP(B76,Kontenplan!$A$4:$B$31,2)) ->  | F76: =IF(E76="","",VLOOKUP(E76,Kontenplan!$A$4:$B$31,2)) -> 
C77: =IF(B77="","",VLOOKUP(B77,Kontenplan!$A$4:$B$31,2)) ->  | F77: =IF(E77="","",VLOOKUP(E77,Kontenplan!$A$4:$B$31,2)) -> 
C78: =IF(B78="","",VLOOKUP(B78,Kontenplan!$A$4:$B$31,2)) ->  | F78: =IF(E78="","",VLOOKUP(E78,Kontenplan!$A$4:$B$31,2)) -> 
A80: 11. | B80: Verkauf von fertigen Erzeugnissen auf Ziel, | D80: netto | E80: 58000 | F80: =IF(AND(B84="2400",E84="5000",E85="4800"),"Die Konten sind richtig!","Mindestens ein Konto ist falsch!") -> Mindestens ein Konto ist falsch!
A81: Geschäftsvorfall | D81: USt. | E81: =E80*$G$4 -> 11020 | F81: =IF(AND(D84=E82,G84=E80,G85=E81),"Die Beträge sind richtig!","Mindestens ein Betrag ist falsch!") -> Mindestens ein Betrag ist falsch!
D82: brutto | E82: =SUM(E80:E81) -> 69020 | F82: =IF(AND(F80="Die Konten sind richtig!",F81="Die Beträge sind richtig!"),"Alles richtig!","Es sind noch Fehler vorhanden!") -> Es sind noch Fehler vorhanden!
B83: Soll | C83: Konto | D83: € | E83: Haben | F83: Konto | G83: €
A84: Buchungssatz | C84: =IF(B84="","",VLOOKUP(B84,Kontenplan!$A$4:$B$31,2)) ->  | F84: =IF(E84="","",VLOOKUP(E84,Kontenplan!$A$4:$B$31,2)) -> 
C85: =IF(B85="","",VLOOKUP(B85,Kontenplan!$A$4:$B$31,2)) ->  | F85: =IF(E85="","",VLOOKUP(E85,Kontenplan!$A$4:$B$31,2)) -> 
A87: 12. | B87: Wir zahlen Fracht für den Verkauf von Fertigen Erzeugnissen aus Geschäftsvorfall 11 bar, | D87: netto | E87: 1100 | F87: =IF(AND(B91="6140",B92="2600",E91="2880"),"Die Konten sind richtig!","Mindestens ein Konto ist falsch!") -> Mindestens ein Konto ist falsch!
A88: Geschäftsvorfall | D88: USt. | E88: =E87*$G$4 -> 209 | F88: =IF(AND(D91=E87,D92=E88,G91=E89),"Die Beträge sind richtig!","Mindestens ein Betrag ist falsch!") -> Mindestens ein Betrag ist falsch!
D89: brutto | E89: =SUM(E87:E88) -> 1309 | F89: =IF(AND(F87="Die Konten sind richtig!",F88="Die Beträge sind richtig!"),"Alles richtig!","Es sind noch Fehler vorhanden!") -> Es sind noch Fehler vorhanden!
B90: Soll | C90: Konto | D90: € | E90: Haben | F90: Konto | G90: €
A91: Buchungssatz | C91: =IF(B91="","",VLOOKUP(B91,Kontenplan!$A$4:$B$31,2)) ->  | F91: =IF(E91="","",VLOOKUP(E91,Kontenplan!$A$4:$B$31,2)) -> 
C92: =IF(B92="","",VLOOKUP(B92,Kontenplan!$A$4:$B$31,2)) ->  | F92: =IF(E92="","",VLOOKUP(E92,Kontenplan!$A$4:$B$31,2)) -> 
A94: Abschlussangaben
A95: A1 | B95: Endbestände lt. Inventur | F95: =IF(AND(B99="8010",E99="2100",B100="8010",E100="2200"),"Die Konten sind richtig!","Mindestens ein Konto ist falsch!") -> Mindestens ein Konto ist falsch!
A96: Abschlussangabe | C96: - Unfertige Erzeugnisse | E96: 21500 | F96: =IF(AND(D99=E96,D100=E97,G99=E96,G100=E97),"Die Beträge sind richtig!","Mindestens ein Betrag ist falsch!") -> Mindestens ein Betrag ist falsch!
C97: - Fertige Erzeugnisse | E97: 42000 | F97: =IF(AND(F95="Die Konten sind richtig!",F96="Die Beträge sind richtig!"),"Alles richtig!","Es sind noch Fehler vorhanden!") -> Es sind noch Fehler vorhanden!
B98: Soll | C98: Konto | D98: € | E98: Haben | F98: Konto | G98: €
A99: Buchungssatz | C99: =IF(B99="","",VLOOKUP(B99,Kontenplan!$A$4:$B$31,2)) ->  | F99: =IF(E99="","",VLOOKUP(E99,Kontenplan!$A$4:$B$31,2)) -> 
C100: =IF(B100="","",VLOOKUP(B100,Kontenplan!$A$4:$B$31,2)) ->  | F100: =IF(E100="","",VLOOKUP(E100,Kontenplan!$A$4:$B$31,2)) -> 
A102: A2 | B102: Abschreibungen auf Sachanlagen | F102: =IF(AND(B107="6520",B108="6520",B109="6520",E107="0700",E108="0800",E109="0840"),"Die Konten sind richtig!","Mindestens ein Konto ist falsch!") -> Mindestens ein Konto ist falsch!
B103: - Technische Anlagen und Maschinen | E103: 12500
A104: Abschlussangabe | B104: - Betriebs- und Geschäftsausstattung | E104: 8700 | F104: =IF(AND(D107=E103,D108=E104,D109=E105,G107=E103,G108=E104,G109=E105),"Die Beträge sind richtig!","Mindestens ein Betrag ist falsch!") -> Mindestens ein Betrag ist falsch!
B105: - Fuhrpark | E105: 14000 | F105: =IF(AND(F102="Die Konten sind richtig!",F104="Die Beträge sind richtig!"),"Alles richtig!","Es sind noch Fehler vorhanden!") -> Es sind noch Fehler vorhanden!
B106: Soll | C106: Konto | D106: € | E106: Haben | F106: Konto | G106: €
A107: Buchungssatz | C107: =IF(B107="","",VLOOKUP(B107,Kontenplan!$A$4:$B$31,2)) ->  | F107: =IF(E107="","",VLOOKUP(E107,Kontenplan!$A$4:$B$31,2)) -> 
C108: =IF(B108="","",VLOOKUP(B108,Kontenplan!$A$4:$B$31,2)) ->  | F108: =IF(E108="","",VLOOKUP(E108,Kontenplan!$A$4:$B$31,2)) -> 
C109: =IF(B109="","",VLOOKUP(B109,Kontenplan!$A$4:$B$31,2)) ->  | F109: =IF(E109="","",VLOOKUP(E109,Kontenplan!$A$4:$B$31,2)) -> 
A111: =IF(AND(F8="Alles richtig!",F15="Alles richtig!",F23="Alles richtig!",F31="Alles richtig!",F38="Alles richtig!",F45="Alles richtig!",F52="Alles richtig!",F59="Alles richtig!",F66="Alles richtig!",F74="Alles richtig!",F82="Alles richtig!",F89="Alles richtig!",F97="Alles richtig!",F97="Alles richtig!",F105="Alles richtig!"),"Die Buchungen im Grundbuch sind richtig!","Das Grundbuch ist noch nicht vollständig!") -> Das Grundbuch ist noch nicht vollständig!

Sheet Hauptbuch
A1: Hauptbuch
A3: Soll | B3: 0500 Grundstücke und Bauten | J3: Haben
A4: Nr. | B4: Kontenanruf | E4: Euro | F4: Nr. | G4: Kontenanruf | J4: Euro | K4: =IF(L4="Kontenanrufe vollständig!",1,2) -> 2 | L4: =IF(G5=8010,"Kontenanrufe vollständig!","Kontenanrufe nicht vollständig!") -> Kontenanrufe nicht vollständig!
A5: AB | B5: 8000 | E5: =Bilanzbuch!C4 -> 1150000 | F5: SB | K5: =IF(L5="Saldo richtig!",1,2) -> 2 | L5: =IF(J5=1150000,"Saldo richtig!","Ermitteln Sie den richtigen Saldo!") -> Ermitteln Sie den richtigen Saldo!
A7: Soll | B7: 0700 Technische Anlagen und Maschinen | J7: Haben
A8: Nr. | B8: Kontenanruf | E8: Euro | F8: Nr. | G8: Kontenanruf | J8: Euro
A9: AB | B9: 8000 | E9: =Bilanzbuch!C5 -> 640000 | F9: A2
F10: SB | K10: =IF(L10="Kontenanrufe vollständig!",1,2) -> 2 | L10: =IF(AND(G9=6520,G10=8010),"Kontenanrufe vollständig!","Kontenanrufe nicht vollständig!") -> Kontenanrufe nicht vollständig!
K11: =IF(L11="Saldo richtig!",1,2) -> 2 | L11: =IF(J10=627500,"Saldo richtig!","Ermitteln Sie den richtigen Saldo!") -> Ermitteln Sie den richtigen Saldo!
A13: Soll | B13: 0800 Betriebs- und Geschäftsausstattung | J13: Haben
A14: Nr. | B14: Kontenanruf | E14: Euro | F14: Nr. | G14: Kontenanruf | J14: Euro
A15: AB | B15: 8000 | E15: =Bilanzbuch!C6 -> 98000 | F15: A2
F16: SB | K16: =IF(L16="Kontenanrufe vollständig!",1,2) -> 2 | L16: =IF(AND(G15=6520,G16=8010),"Kontenanrufe vollständig!","Kontenanrufe nicht vollständig!") -> Kontenanrufe nicht vollständig!
K17: =IF(L17="Saldo richtig!",1,2) -> 2 | L17: =IF(J16=89300,"Saldo richtig!","Ermitteln Sie den richtigen Saldo!") -> Ermitteln Sie den richtigen Saldo!
A19: Soll | B19: 0840 Fuhrpark | J19: Haben
A20: Nr. | B20: Kontenanruf | E20: Euro | F20: Nr. | G20: Kontenanruf | J20: Euro
A21: AB | B21: 8000 | E21: =Bilanzbuch!C7 -> 105000 | F21: A2
A22: 4. | F22: SB | K22: =IF(L22="Kontenanrufe vollständig!",1,2) -> 2 | L22: =IF(AND(B22=4400,G21=6520,G22=8010),"Kontenanrufe vollständig!","Kontenanrufe nicht vollständig!") -> Kontenanrufe nicht vollständig!
K23: =IF(L23="Saldo richtig!",1,2) -> 2 | L23: =IF(J22=133000,"Saldo richtig!","Ermitteln Sie den richtigen Saldo!") -> Ermitteln Sie den richtigen Saldo!
A25: Soll | B25: 2000 Rohstoffe | J25: Haben
A26: Nr. | B26: Kontenanruf | E26: Euro | F26: Nr. | G26: Kontenanruf | J26: Euro
A27: AB | B27: 8000 | E27: =Bilanzbuch!C8 -> 94000 | F27: 5.
A28: 1. | F28: A | K28: =IF(L28="Kontenanrufe vollständig!",1,2) -> 2 | L28: =IF(AND(B28=4400,B29=2001,G27=4400,G28=2002,G29=8010),"Kontenanrufe vollständig!","Kontenanrufe nicht vollständig!") -> Kontenanrufe nicht vollständig!
A29: A | F29: SB | K29: =IF(L29="Saldo richtig!",1,2) -> 2 | L29: =IF(J29=131200,"Saldo richtig!","Ermitteln Sie den richtigen Saldo!") -> Ermitteln Sie den richtigen Saldo!
A32: Soll | B32: 2001 Bezugskosten (Rohstoffe) | J32: Haben
A33: Nr. | B33: Kontenanruf | E33: Euro | F33: Nr. | G33: Kontenanruf | J33: Euro
A34: 2. | F34: A | K34: =IF(L34="Kontenanrufe vollständig!",1,2) -> 2 | L34: =IF(AND(B34=2880,G34=2000),"Kontenanrufe vollständig!","Kontenanrufe nicht vollständig!") -> Kontenanrufe nicht vollständig!
K35: =IF(L35="Saldo richtig!",1,2) -> 2 | L35: =IF(J34=1200,"Saldo richtig!","Ermitteln Sie den richtigen Saldo!") -> Ermitteln Sie den richtigen Saldo!
A37: Soll | B37: 2002 Nachlässe (Rohstoffe) | J37: Haben
A38: Nr. | B38: Kontenanruf | E38: Euro | F38: Nr. | G38: Kontenanruf | J38: Euro
A39: A | B39: 2000 | E39: =E41 -> 0 | F39: 8. | K39: =IF(L39="Kontenanrufe vollständig!",1,2) -> 2 | L39: =IF(AND(B39=2000,G39=4400,G40=4400),"Kontenanrufe vollständig!","Kontenanrufe nicht vollständig!") -> Kontenanrufe nicht vollständig!
F40: 10. | K40: =IF(L40="Saldo richtig!",1,2) -> 2 | L40: =IF(E39=2500,"Saldo richtig!","Ermitteln Sie den richtigen Saldo!") -> Ermitteln Sie den richtigen Saldo!
A43: Soll | B43: 2020 Hilfsstoffe | J43: Haben
A44: Nr. | B44: Kontenanruf | E44: Euro | F44: Nr. | G44: Kontenanruf | J44: Euro | K44: =IF(L44="Kontenanrufe vollständig!",1,2) -> 2 | L44: =IF(G45=8010,"Kontenanrufe vollständig!","Kontenanrufe nicht vollständig!") -> Kontenanrufe nicht vollständig!
A45: AB | B45: 8000 | E45: =Bilanzbuch!C9 -> 24000 | F45: SB | K45: =IF(L45="Saldo richtig!",1,2) -> 2 | L45: =IF(J45=24000,"Saldo richtig!","Ermitteln Sie den richtigen Saldo!") -> Ermitteln Sie den richtigen Saldo!
A47: Soll | B47: 2030 Betriebsstoffe | J47: Haben
A48: Nr. | B48: Kontenanruf | E48: Euro | F48: Nr. | G48: Kontenanruf | J48: Euro | K48: =IF(L48="Kontenanrufe vollständig!",1,2) -> 2 | L48: =IF(G49=8010,"Kontenanrufe vollständig!","Kontenanrufe nicht vollständig!") -> Kontenanrufe nicht vollständig!
A49: AB | B49: 8000 | E49: =Bilanzbuch!C10 -> 9200 | F49: SB | K49: =IF(L49="Saldo richtig!",1,2) -> 2 | L49: =IF(J49=9200,"Saldo richtig!","Ermitteln Sie den richtigen Saldo!") -> Ermitteln Sie den richtigen Saldo!
A51: Soll | B51: 2100 Unfertige Erzeugnisse | J51: Haben
A52: Nr. | B52: Kontenanruf | E52: Euro | F52: Nr. | G52: Kontenanruf | J52: Euro
A53: AB | B53: 8000 | E53: =Bilanzbuch!C11 -> 29000 | F53: SB | K53: X
F54: A | K54: =IF(L54="Kontenanrufe vollständig!",1,2) -> 2 | L54: =IF(G54=5200,"Kontenanrufe vollständig!","Kontenanrufe nicht vollständig!") -> Kontenanrufe nicht vollständig!
K55: =IF(L55="Saldo richtig!",1,2) -> 2 | L55: =IF(J54=7500,"Saldo richtig!","Ermitteln Sie den richtigen Saldo!") -> Ermitteln Sie den richtigen Saldo!
A57: Soll | B57: 2200 Fertige Erzeugnisse | J57: Haben
A58: Nr. | B58: Kontenanruf | E58: Euro | F58: Nr. | G58: Kontenanruf | J58: Euro
A59: AB | B59: 8000 | F59: SB
A60: A | K60: =IF(L60="Kontenanrufe vollständig!",1,2) -> 2 | L60: =IF(B60=5200,"Kontenanrufe vollständig!","Kontenanrufe nicht vollständig!") -> Kontenanrufe nicht vollständig!
K61: =IF(L61="Saldo richtig!",1,2) -> 2 | L61: =IF(E60=3000,"Saldo richtig!","Ermitteln Sie den richtigen Saldo!") -> Ermitteln Sie den richtigen Saldo!
A63: Soll | B63: 2400 Forderungen aus Lieferungen und Leistungen | J63: Haben
A64: Nr. | B64: Kontenanruf | E64: Euro | F64: Nr. | G64: Kontenanruf | J64: Euro
A65: AB | B65: 8000 | E65: =Bilanzbuch!C13 -> 74000 | F65: 3.
A66: 11. | F66: 7. | K66: =IF(L66="Kontenanrufe vollständig!",1,2) -> 2 | L66: =IF(AND(B66=5000,C66=4800,G65=2800,H65=5001,I65=4800,G66=5001,H66=4800,G67=8010),"Kontenanrufe vollständig!","Kontenanrufe nicht vollständig!") -> Kontenanrufe nicht vollständig!
F67: SB | K67: =IF(L67="Saldo richtig!",1,2) -> 2 | L67: =IF(J67=(E65+E66-J65-J66),"Saldo richtig!","Ermitteln Sie den richtigen Saldo!") -> Ermitteln Sie den richtigen Saldo!
A70: Soll | B70: 2600 Vorsteuer | J70: Haben
A71: Nr. | B71: Kontenanruf | E71: Euro | F71: Nr. | G71: Kontenanruf | J71: Euro
A72: 1. | F72: 5.
A73: 2. | F73: 8. | K73: =IF(L73="Kontenanrufe vollständig!",1,2) -> 2 | L73: =IF(AND(B72=4400,B73=2880,B74=4400,B75=2880,B76=2880,B77=2880,G72=4400,G73=4400,G74=4400,G75=4800),"Kontenanrufe vollständig!","Kontenanrufe nicht vollständig!") -> Kontenanrufe nicht vollständig!
A74: 4. | F74: 10. | K74: =IF(L74="Saldo richtig!",1,2) -> 2 | L74: =IF(AND(J75>0,J75=(E72+E73+E74+E75+E76+E77-J72-J73-J74)),"Saldo richtig!","Ermitteln Sie den richtigen Saldo!") -> Ermitteln Sie den richtigen Saldo!
A75: 6. | F75: A
A76: 9.
A77: 11.
A80: Soll | B80: 2800 Kreditinstitute/Bank | J80: Haben
A81: Nr. | B81: Kontenanruf | E81: Euro | F81: Nr. | G81: Kontenanruf | J81: Euro
A82: AB | B82: 8000 | E82: =Bilanzbuch!C14 -> 89000 | F82: 10.
A83: 3. | F83: SB | K83: =IF(L83="Kontenanrufe vollständig!",1,2) -> 2 | L83: =IF(AND(B83=2400,G82=4400,G83=8010),"Kontenanrufe vollständig!","Kontenanrufe nicht vollständig!") -> Kontenanrufe nicht vollständig!
K84: =IF(L84="Saldo richtig!",1,2) -> 2 | L84: =IF(J83=(E82+E83-J82),"Saldo richtig!","Ermitteln Sie den richtigen Saldo!") -> Ermitteln Sie den richtigen Saldo!
A86: Soll | B86: 2880 Kasse | J86: Haben
A87: Nr. | B87: Kontenanruf | E87: Euro | F87: Nr. | G87: Kontenanruf | J87: Euro
A88: AB | B88: 8000 | E88: =Bilanzbuch!C15 -> 9300 | F88: 2.
F89: 6. | K89: =IF(L89="Kontenanrufe vollständig!",1,2) -> 2 | L89: =IF(AND(G88=2001,H88=2600,G89=6160,H89=2600,G90=6140,H90=2600,G91=6140,H91=2600,G92=8010),"Kontenanrufe vollständig!","Kontenanrufe nicht vollständig!") -> Kontenanrufe nicht vollständig!
F90: 9. | K90: =IF(L90="Saldo richtig!",1,2) -> 2 | L90: =IF(J92=(E88-J88-J89-J90-J91),"Saldo richtig!","Ermitteln Sie den richtigen Saldo!") -> Ermitteln Sie den richtigen Saldo!
F91: 11.
F92: SB
A95: Soll | B95: 3000 Eigenkapital | J95: Haben
A96: Nr. | B96: Kontenanruf | E96: Euro | F96: Nr. | G96: Kontenanruf | J96: Euro | K96: X
A97: SB | F97: AB | G97: 8000 | J97: =Bilanzbuch!F4 -> 1348400
F98: GuV | K98: =IF(L98="Kontenanrufe vollständig!",1,2) -> 2 | L98: =IF(AND(G98=8020,B97=8010),"Kontenanrufe vollständig!","Kontenanrufe nicht vollständig!") -> Kontenanrufe nicht vollständig!
K99: =IF(L99="Saldo richtig!",1,2) -> 2 | L99: =IF(E97=1362180,"Saldo richtig!","Ermitteln Sie den richtigen Saldo!") -> Ermitteln Sie den richtigen Saldo!
A101: Soll | B101: 4200 Verbindlichkeiten gegenüber Kreditinstituten (Darlehen) | J101: Haben
A102: Nr. | B102: Kontenanruf | E102: Euro | F102: Nr. | G102: Kontenanruf | J102: Euro | K102: =IF(L102="Kontenanrufe vollständig!",1,2) -> 2 | L102: =IF(B103=8010,"Kontenanrufe vollständig!","Kontenanrufe nicht vollständig!") -> Kontenanrufe nicht vollständig!
A103: SB | F103: AB | G103: 8000 | J103: =Bilanzbuch!F5 -> 940000 | K103: =IF(L103="Saldo richtig!",1,2) -> 2 | L103: =IF(E103=940000,"Saldo richtig!","Ermitteln Sie den richtigen Saldo!") -> Ermitteln Sie den richtigen Saldo!
A105: Soll | B105: 4400 Verbindlichkeiten aus Lieferungen und Leistungen | J105: Haben
A106: Nr. | B106: Kontenanruf | E106: Euro | F106: Nr. | G106: Kontenanruf | J106: Euro
A107: 5. | F107: AB | G107: 8000 | J107: =Bilanzbuch!F6 -> 62000
A108: 8. | F108: 1. | K108: =IF(L108="Kontenanrufe vollständig!",1,2) -> 2 | L108: =IF(AND(B107=2000,C107=2600,B108=2002,C108=2600,B109=2800,C109=2002,D109=2600,B110=8010,G108=2000,H108=2600,G109="0840",H109=2600),"Kontenanrufe vollständig!","Kontenanrufe nicht vollständig!") -> Kontenanrufe nicht vollständig!
A109: 10. | F109: 4. | K109: =IF(L109="Saldo richtig!",1,2) -> 2 | L109: =IF(E110=(J107+J108+J109-E107-E108-E109),"Saldo richtig!","Ermitteln Sie den richtigen Saldo!") -> Ermitteln Sie den richtigen Saldo!
A110: SB
A113: Soll | B113: 4800 Umsatzsteuer | J113: Haben
A114: Nr. | B114: Kontenanruf | E114: Euro | F114: Nr. | G114: Kontenanruf | J114: Euro
A115: 3. | F115: AB | G115: 8000 | J115: =Bilanzbuch!F7 -> 10100
A116: 7. | F116: 11.
A117: A | K117: =IF(L117="Kontenanrufe vollständig!",1,2) -> 2 | L117: =IF(AND(B115=2400,B116=2400,B117=2600,B118=8010,G116=2400),"Kontenanrufe vollständig!","Kontenanrufe nicht vollständig!") -> Kontenanrufe nicht vollständig!
A118: SB | K118: =IF(L118="Saldo richtig!",1,2) -> 2 | L118: =IF(E118=(J115+J116-E115-E116-E117),"Saldo richtig!","Ermitteln Sie den richtigen Saldo!") -> Ermitteln Sie den richtigen Saldo!
A121: Soll | B121: 5000 Umsatzerlöse | J121: Haben
A122: Nr. | B122: Kontenanruf | E122: Euro | F122: Nr. | G122: Kontenanruf | J122: Euro
A123: A | F123: 11.
A124: GuV | K124: =IF(L124="Kontenanrufe vollständig!",1,2) -> 2 | L124: =IF(AND(B123=5001,B124=8020,G123=2400),"Kontenanrufe vollständig!","Kontenanrufe nicht vollständig!") -> Kontenanrufe nicht vollständig!
K125: =IF(L125="Saldo richtig!",1,2) -> 2 | L125: =IF(E124=56350,"Saldo richtig!","Ermitteln Sie den richtigen Saldo!") -> Ermitteln Sie den richtigen Saldo!
A127: Soll | B127: 5001 Erlösberichtigungen | J127: Haben
A128: Nr. | B128: Kontenanruf | E128: Euro | F128: Nr. | G128: Kontenanruf | J128: Euro
A129: 3. | F129: A | K129: =IF(L129="Kontenanrufe vollständig!",1,2) -> 2 | L129: =IF(AND(B129=2400,B130=2400,G129=5000),"Kontenanrufe vollständig!","Kontenanrufe nicht vollständig!") -> Kontenanrufe nicht vollständig!
A130: 7. | K130: =IF(L130="Saldo richtig!",1,2) -> 2 | L130: =IF(J129=1650,"Saldo richtig!","Ermitteln Sie den richtigen Saldo!") -> Ermitteln Sie den richtigen Saldo!
A133: Soll | B133: 5200 Bestandsveränderunen | J133: Haben
A134: Nr. | B134: Kontenanruf | E134: Euro | F134: Nr. | G134: Kontenanruf | J134: Euro
A135: A | F135: A
F136: GuV
K137: =IF(L137="Kontenanrufe vollständig!",1,2) -> 2 | L137: =IF(AND(B135=2100,G135=2200,G136=8020),"Kontenanrufe vollständig!","Kontenanrufe nicht vollständig!") -> Kontenanrufe nicht vollständig!
K138: =IF(L138="Saldo richtig!",1,2) -> 2 | L138: =IF(J136=4500,"Saldo richtig!","Ermitteln Sie den richtigen Saldo!") -> Ermitteln Sie den richtigen Saldo!
A140: Soll | B140: 6140 Frachten und Femdlager | J140: Haben
A141: Nr. | B141: Kontenanruf | E141: Euro | F141: Nr. | G141: Kontenanruf | J141: Euro
A142: 9. | F142: GuV
A143: 11. | K143: =IF(L143="Kontenanrufe vollständig!",1,2) -> 2 | L143: =IF(AND(B142=2880,B143=2880,G142=8020),"Kontenanrufe vollständig!","Kontenanrufe nicht vollständig!") -> Kontenanrufe nicht vollständig!
K144: =IF(L144="Saldo richtig!",1,2) -> 2 | L144: =IF(J142=1570,"Saldo richtig!","Ermitteln Sie den richtigen Saldo!") -> Ermitteln Sie den richtigen Saldo!
A146: Soll | B146: 6160 Fremdinstandhaltung | J146: Haben
A147: Nr. | B147: Kontenanruf | E147: Euro | F147: Nr. | G147: Kontenanruf | J147: Euro
A148: 6. | F148: GuV
K149: =IF(L149="Kontenanrufe vollständig!",1,2) -> 2 | L149: =IF(AND(B148=2880,G148=8020),"Kontenanrufe vollständig!","Kontenanrufe nicht vollständig!") -> Kontenanrufe nicht vollständig!
K150: =IF(L150="Saldo richtig!",1,2) -> 2 | L150: =IF(J148=1300,"Saldo richtig!","Ermitteln Sie den richtigen Saldo!") -> Ermitteln Sie den richtigen Saldo!
A152: Soll | B152: 6520 Abschreibungen auf Sachanlagen | J152: Haben
A153: Nr. | B153: Kontenanruf | E153: Euro | F153: Nr. | G153: Kontenanruf | J153: Euro
A154: A2 | F154: GuV
A155: A2 | K155: =IF(L155="Kontenanrufe vollständig!",1,2) -> 2 | L155: =IF(AND(B154="0700",B155="0800",B156="0840",G154=8020),"Kontenanrufe vollständig!","Kontenanrufe nicht vollständig!") -> Kontenanrufe nicht vollständig!
A156: A2 | K156: =IF(L156="Saldo richtig!",1,2) -> 2 | L156: =IF(J154=35200,"Saldo richtig!","Ermitteln Sie den richtigen Saldo!") -> Ermitteln Sie den richtigen Saldo!
K1113: X

Sheet GuV
A1: Gewinn- und Verlustrechnung
A3: Soll | B3: 8020 Gewinn und Verlust | F3: Haben | G3: X
A4: 5200 | B4: =VLOOKUP(A4,Kontenplan!$A$4:$B$31,2) -> Bestandsveränderungen | D4: 5000 | E4: =VLOOKUP(D4,Kontenplan!$A$4:$B$31,2) -> Umsatzerlöse | G4: =IF(H4="Sie haben den Gewinn richtig ermittelt!",1,2) -> 2 | H4: =IF(C8=13780,"Sie haben den Gewinn richtig ermittelt!","Sie haben noch Fehler!") -> Sie haben noch Fehler!
A5: 6140 | B5: Frachten und Fremdlager
A6: 6160 | B6: Fremdinstandhaltung
A7: 6520 | B7: Abschreibungen auf Sachanlagen
A8: 3000 | B8: Eigenkapital

Sheet Bilanzbuch
A1: Bilanzbuch
A3: Aktiva | B3: 8000 Eröffnungsbilanz | F3: Passiva
A4: 0500 | B4: =VLOOKUP(A4,Kontenplan!$A$4:$B$31,2) -> Grundstücke und Bauten | C4: 1150000 | D4: 3000 | E4: =VLOOKUP(D4,Kontenplan!$A$4:$B$31,2) -> Eigenkapital | F4: =F16-SUM(F5:F15) -> 1348400
A5: 0700 | B5: =VLOOKUP(A5,Kontenplan!$A$4:$B$31,2) -> Technische Anlagen und Maschinen | C5: 640000 | D5: 4200 | E5: Verbindlichkeiten g. Kreditinstitute | F5: 940000
A6: 0800 | B6: =VLOOKUP(A6,Kontenplan!$A$4:$B$31,2) -> Beriebs- und Geschäftsausstattung | C6: 98000 | D6: 4400 | E6: =VLOOKUP(D6,Kontenplan!$A$4:$B$31,2) -> Verbindlichkeiten a.L.u.L. | F6: 62000
A7: 0840 | B7: Fuhrpark | C7: 105000 | D7: 4800 | E7: =VLOOKUP(D7,Kontenplan!$A$4:$B$31,2) -> Umsatzsteuer | F7: 10100
A8: 2000 | B8: =VLOOKUP(A8,Kontenplan!$A$4:$B$31,2) -> Rohstoffe | C8: 94000
A9: 2020 | B9: =VLOOKUP(A9,Kontenplan!$A$4:$B$31,2) -> Hilfsstoffe | C9: 24000
A10: 2030 | B10: =VLOOKUP(A10,Kontenplan!$A$4:$B$31,2) -> Betriebsstoffe | C10: 9200
A11: 2100 | B11: =VLOOKUP(A11,Kontenplan!$A$4:$B$31,2) -> Unfertige Erzeugnisse | C11: 29000
A12: 2200 | B12: =VLOOKUP(A12,Kontenplan!$A$4:$B$31,2) -> Fertige Erzeugnisse | C12: 39000
A13: 2400 | B13: =VLOOKUP(A13,Kontenplan!$A$4:$B$31,2) -> Forderungen a.L.u.L. | C13: 74000
A14: 2800 | B14: =VLOOKUP(A14,Kontenplan!$A$4:$B$31,2) -> Kreditinstitute/Bank | C14: 89000
A15: 2880 | B15: =VLOOKUP(A15,Kontenplan!$A$4:$B$31,2) -> Kasse | C15: 9300
C16: =SUM(C4:C15) -> 2360500 | F16: =C16 -> 2360500
A18: Aktiva | B18: 8010 Schlussbilanz | F18: Passiva | G18: X
A19: 0500 | B19: =VLOOKUP(A19,Kontenplan!$A$4:$B$31,2) -> Grundstücke und Bauten | D19: 3000 | E19: =VLOOKUP(D19,Kontenplan!$A$4:$B$31,2) -> Eigenkapital | G19: =IF(H19="Aktiva = Passiva",1,2) -> 1 | H19: =IF(C31-F31=0,"Aktiva = Passiva",IF(C31-F31>0,"Aktiva > Passiva","Aktiva < Passiva")) -> Aktiva = Passiva
A20: 0700 | B20: =VLOOKUP(A20,Kontenplan!$A$4:$B$31,2) -> Technische Anlagen und Maschinen | D20: 4200 | E20: Verbindlichkeiten g. Kreditinstituten | H20: =CONCATENATE("Differenz = ",$C$31-$F$31) -> Differenz = 0
A21: 0800 | B21: =VLOOKUP(A21,Kontenplan!$A$4:$B$31,2) -> Beriebs- und Geschäftsausstattung | D21: 4400 | E21: =VLOOKUP(D21,Kontenplan!$A$4:$B$31,2) -> Verbindlichkeiten a.L.u.L.
A22: 0840 | B22: Fuhrpark | D22: 4800 | E22: =VLOOKUP(D22,Kontenplan!$A$4:$B$31,2) -> Umsatzsteuer
A23: 2000 | B23: =VLOOKUP(A23,Kontenplan!$A$4:$B$31,2) -> Rohstoffe
A24: 2020 | B24: =VLOOKUP(A24,Kontenplan!$A$4:$B$31,2) -> Hilfsstoffe
A25: 2030 | B25: =VLOOKUP(A25,Kontenplan!$A$4:$B$31,2) -> Betriebsstoffe
A26: 2100 | B26: =VLOOKUP(A26,Kontenplan!$A$4:$B$31,2) -> Unfertige Erzeugnisse
A27: 2200 | B27: =VLOOKUP(A27,Kontenplan!$A$4:$B$31,2) -> Fertige Erzeugnisse
A28: 2400 | B28: =VLOOKUP(A28,Kontenplan!$A$4:$B$31,2) -> Forderungen a.L.u.L.
A29: 2800 | B29: =VLOOKUP(A29,Kontenplan!$A$4:$B$31,2) -> Kreditinstitute/Bank
A30: 2880 | B30: =VLOOKUP(A30,Kontenplan!$A$4:$B$31,2) -> Kasse

Sheet Kontenplan
B1: Kontenplan
A3: Nr. | B3: Konto
A4: 0500 | B4: Grundstücke und Bauten
A5: 0700 | B5: Technische Anlagen und Maschinen
A6: 0800 | B6: Beriebs- und Geschäftsausstattung
A7: 0840 | B7: Fuhrpark
A8: 2000 | B8: Rohstoffe
A9: 2001 | B9: Bezugskosten (Rohstoffe)
A10: 2002 | B10: Nachlässe (Rohstoffe)
A11: 2020 | B11: Hilfsstoffe
A12: 2030 | B12: Betriebsstoffe
A13: 2100 | B13: Unfertige Erzeugnisse
A14: 2200 | B14: Fertige Erzeugnisse
A15: 2400 | B15: Forderungen a.L.u.L.
A16: 2600 | B16: Vorsteuer
A17: 2800 | B17: Kreditinstitute/Bank
A18: 2880 | B18: Kasse
A19: 3000 | B19: Eigenkapital
A20: 4200 | B20: Verbindlichkeiten g. Kreditinstituten
A21: 4400 | B21: Verbindlichkeiten a.L.u.L.
A22: 4800 | B22: Umsatzsteuer
A23: 5000 | B23: Umsatzerlöse
A24: 5001 | B24: Erlösberichtigungen
A25: 5200 | B25: Bestandsveränderungen
A26: 6140 | B26: Frachten und Fremdlager
A27: 6160 | B27: Fremdinstandhaltung
A28: 6520 | B28: Abschreibungen auf Sachanlagen
A29: 8000 | B29: Eröffnungsbilanz
A30: 8010 | B30: Schlussbilanz
A31: 8020 | B31: Gewinn und Verlust
